bitfinex-derivatives/quotes_ETHF0:USTF0_20250428
["timestamp","ask_amount","ask_price","bid_price","bid_amount"]
[1745870523414,6.04619,1796.5,1796.4,42.4914]
[1745870523619,3.2078,1796.5,1796.4,43.60445]
[1745870524121,4.32079,1796.5,1796.4,42.4914]
[1745870525519,4.32079,1796.5,1796.4,43.60445]
[1745870525720,3.2078,1796.5,1796.4,42.4914]
[1745870526019,4.32079,1796.5,1796.4,43.60445]
[1745870526408,3.2078,1796.5,1796.4,43.60445]
[1745870527023,7.2998,1796.7,1796.4,41.91305]
[1745870527219,1.11299,1796.5,1796.4,41.91305]
[1745870527520,1.11297,1796.6,1796.5,1.11294]
[1745870528318,8.41272,1796.7,1796.6,1.11293]
[1745870529120,5.20492,1796.7,1796.6,1.11293]
[1745870529923,1.11296,1796.6,1796.5,1.11294]
[1745870531723,5.20492,1796.7,1796.6,1.11293]
[1745870531924,4.092,1796.7,1796.6,1.11293]
[1745870533727,5.6448,1796.9,1796.6,1.11292]
[1745870534026,2.80614,1796.8,1796.7,1.11287]
[1745870534227,1.6933,1796.8,1796.7,1.11287]
[1745870534527,2.80611,1796.8,1796.7,1.11287]
[1745870534829,1.6933,1796.8,1796.7,1.11287]
[1745870536628,2.80611,1796.8,1796.7,1.11287]
[1745870537819,9.47533,1796.8,1796.4,40.8]
[1745870538025,1.11299,1796.5,1796.4,41.91302]
[1745870538227,1.11299,1796.5,1796.4,40.8]
[1745870538623,4.32079,1796.5,1796.4,40.8]
[1745870538832,5.96009,1796.5,1796.4,40.8]
[1745870539427,5.96009,1796.5,1796.2,0.8348]
[1745870539428,1.11324,1796.1,1796.0,1.11326]
[1745870539629,5.19924,1796.1,1796.0,1.11326]
[1745870539930,8.40704,1796.1,1796.0,40.8]
[1745870540430,8.50449504,1796.1,1796.0,40.8]
[1745870540624,10.08604,1796.1,1796.0,40.8]
[1745870541129,10.18348971,1796.1,1796.0,40.8]
[1745870541525,1.11347,1795.8,1795.7,1.11349]
[1745870541832,4.087,1795.8,1795.7,1.11349]
[1745870542029,4.087,1795.8,1795.7,41.91349]
[1745870542226,5.766,1795.8,1795.7,41.91349]
[1745870542733,4.087,1795.8,1795.7,41.91349]
[1745870543532,5.6724,1795.8,1795.7,41.91349]
[1745870543929,7.2935,1795.8,1795.7,40.8]
[1745870544432,7.2935,1795.8,1795.7,42.4902]
[1745870544834,4.8949,1795.8,1795.7,43.60369]
[1745870545130,4.087,1795.8,1795.7,43.60369]
[1745870545528,4.087,1795.8,1795.0,5.848]
[1745870545529,9.087,1795.8,1795.0,5.848]
[1745870545720,9.087,1795.8,1795.1,4.50735]
[1745870545721,1.11369,1795.4,1795.1,4.50735]
[1745870545927,3.2078,1795.3,1795.2,1.6263]
[1745870546134,3.2078,1795.3,1795.2,40.8]
[1745870546334,4.8479,1795.3,1795.2,40.8]
[1745870546926,3.2078,1795.6,1795.2,45.8]
[1745870547134,3.2078,1795.6,1795.4,1.11365]
[1745870547328,4.32135,1795.6,1795.5,1.6263]
[1745870547836,7.2958,1795.6,1795.5,2.73991]
[1745870548132,7.2958,1795.6,1795.5,1.6263]
[1745870548733,7.2958,1795.6,1795.5,2.73991]
[1745870548933,8.40935,1795.6,1795.5,1.6263]
[1745870549732,8.40935,1795.6,1795.5,2.73991]
[1745870549733,7.2958,1795.6,1795.5,2.73991]
[1745870550227,5.20155,1795.6,1795.5,1.6263]
[1745870550531,1.11367,1795.4,1795.3,0.8754]
[1745870550733,4.088,1795.6,1795.4,1.7023]
[1745870550940,5.2016,1795.6,1795.5,1.11361]
[1745870551233,1.11361,1795.5,1795.4,43.61592]
[1745870551433,1.11358,1795.6,1795.5,1.11361]
[1745870551630,5.20157,1795.6,1795.4,40.8]
[1745870551830,1.11351,1795.7,1795.6,1.11351]
[1745870552025,5.20156,1795.6,1795.5,1.11355]
[1745870552228,5.20155,1795.6,1795.5,1.11355]
[1745870552529,1.11355,1795.6,1795.5,1.11355]
[1745870552737,5.20152,1795.7,1795.6,1.11355]
[1745870553036,1.11355,1795.6,1795.5,1.94237]
[1745870553232,4.088,1795.7,1795.5,0.8288]
[1745870553633,5.20154,1795.7,1795.6,1.11355]
[1745870553830,1.11354,1795.7,1795.6,1.11355]
[1745870554028,1.11361,1795.5,1795.4,41.91364]
[1745870554739,1.11358,1795.6,1795.5,1.11361]
[1745870554936,4.088,1795.7,1795.5,1.11361]
[1745870555339,4.088,1795.7,1795.4,40.8]
[1745870555539,4.088,1795.7,1795.5,1.11358]
[1745870555927,5.2015,1795.7,1795.5,1.11358]
[1745870556132,6.8367,1795.7,1795.5,1.11358]
[1745870556734,1.11356,1795.6,1795.4,40.8]
[1745870557238,1.11361,1795.5,1795.4,40.8]
[1745870557438,2.74881,1795.5,1795.4,40.8]
[1745870557640,0.8113,1795.6,1795.4,40.8]
[1745870557641,1.92489,1795.6,1795.4,41.91367]
[1745870557938,2.4465,1795.6,1795.5,1.11361]
[1745870558540,3.56009,1795.6,1795.4,41.91365]
[1745870558740,1.6383,1795.5,1795.4,41.91365]
[1745870559237,2.75191,1795.5,1795.3,1.9891]
[1745870559438,4.089,1795.4,1795.3,1.9891]
[1745870559630,5.7273,1795.4,1795.3,1.9891]
[1745870560032,2.78435,1795.3,1794.6,2.78542]
[1745870560238,3.2078,1795.1,1794.6,4.5011]
[1745870560531,4.089,1795.0,1794.9,1.11398]
[1745870561129,4.089,1795.0,1794.9,4.91598]
[1745870563243,4.089,1795.0,1794.9,1.11398]
[1745870563946,3.2078,1795.3,1795.2,1.1138]
[1745870565144,4.32154,1795.3,1795.2,4.9158]
[1745870565343,5.91964,1795.3,1795.2,4.9158]
[1745870565544,3.2078,1795.3,1795.2,4.9158]
[1745870569851,4.083,1795.4,1795.3,1.11374]
[1745870570050,4.083,1795.4,1795.3,2.84284]
[1745870571348,5.19667,1795.4,1795.3,2.84284]
[1745870571547,8.40447,1795.4,1795.3,2.84284]
[1745870571847,8.40447,1795.4,1795.3,1.11374]
[1745870572045,12.2908,1795.4,1795.1,1.7429]
[1745870572248,1.11385,1795.2,1795.1,1.11381]
[1745870572756,2.78145,1795.2,1795.1,1.11381]
[1745870573161,12.65992,1795.2,1794.9,5.848]
[1745870573457,1.11392,1795.0,1794.9,1.11395]
[1745870573655,5.6806,1795.1,1794.7,0.8193]
[1745870573954,3.2078,1794.8,1794.2,8.63393]
[1745870574157,7.2918,1794.7,1794.6,1.11417]
[1745870574355,7.2918,1794.7,1794.6,2.75537]
[1745870574854,8.8884,1794.7,1794.6,2.75537]
[1745870575660,5.6476,1795.0,1794.9,1.11398]
[1745870575958,9.7316,1795.0,1794.9,1.11398]
[1745870576256,10.84552,1795.0,1794.9,1.11398]
[1745870577259,11.27156245,1795.0,1794.9,1.11398]
[1745870577458,10.84552,1795.0,1794.9,1.11398]
[1745870577655,6.5238,1795.0,1794.9,1.11398]
[1745870577958,4.084,1795.0,1794.9,1.11398]
[1745870578157,4.084,1795.0,1794.9,4.91598]
[1745870578561,4.084,1795.0,1794.9,5.72078]
[1745870579354,4.9578,1795.2,1795.1,1.11386]
[1745870579553,4.084,1795.2,1795.1,1.11386]
[1745870579748,69.40189,1795.4,1795.2,1.11375]
[1745870579948,69.40187,1795.4,1795.3,1.6052]
[1745870582153,71.07239,1795.4,1794.9,0.8048]
[1745870582349,1.11398,1794.9,1794.8,3.2078]
[1745870582544,1.11398,1794.9,1794.5,4.322]
[1745870582545,1.11417,1794.6,1794.5,4.322]
[1745870582745,1.11417,1794.6,1794.3,9.4996]
[1745870582746,4.084,1794.6,1794.3,5.18782]
[1745870583050,5.19821,1794.6,1794.5,1.11423]
[1745870583251,1.11421,1794.6,1794.5,1.11423]
[1745870583550,1.1143,1794.4,1794.3,5.18784]
[1745870584252,1.6006,1794.5,1794.3,7.8755]
[1745870584553,2.71488,1794.5,1794.4,1.1143]
[1745870584859,1.6006,1794.5,1794.4,1.1143]
[1745870585251,2.71486,1794.5,1794.3,5.18781]
[1745870585452,2.71486,1794.5,1794.4,1.6763]
[1745870585660,1.6006,1794.5,1794.4,1.6763]
[1745870586055,1.6006,1794.5,1794.4,2.7906]
[1745870586353,2.71483,1794.5,1794.4,1.6763]
[1745870586663,1.6006,1794.5,1794.3,5.18782]
[1745870586961,1.6006,1794.5,1794.3,4.0735]
[1745870586962,1.6704,1794.4,1794.3,4.0735]
[1745870587153,5.7554,1794.4,1794.1,3.2078]
[1745870587462,1.9808,1794.3,1794.0,1.11452]
[1745870587659,3.2078,1794.6,1794.2,1.1144]
[1745870587863,4.085,1794.5,1794.3,0.8659]
[1745870588056,1.1143,1794.4,1794.3,0.8659]
[1745870588359,1.1143,1794.4,1794.2,1.11441]
[1745870588559,1.11436,1794.3,1794.2,5.18811]
[1745870588762,1.11436,1794.3,1794.2,4.0737]
[1745870589562,1.11436,1794.3,1794.2,5.18812]
[1745870589758,1.11436,1794.3,1794.2,3.2078]
[1745870589959,2.521,1794.3,1794.1,1.11446]
[1745870590169,5.19945,1794.2,1794.1,1.11446]
[1745870590353,1.11448,1794.1,1794.0,1.9924]
[1745870590558,5.19946,1794.2,1794.1,1.11448]
[1745870590858,1.11448,1794.1,1794.0,1.9924]
[1745870591455,1.11448,1794.1,1794.0,0.8779]
[1745870591764,1.11454,1794.0,1793.9,3.2078]
[1745870591962,1.11461,1793.9,1793.8,1.99253]
[1745870592151,1.5871,1794.1,1793.9,1.11461]
[1745870592659,1.11454,1794.0,1793.9,1.11461]
[1745870592860,5.19945,1794.2,1793.8,3.66457]
[1745870593057,5.19945,1794.2,1794.1,1.11448]
[1745870593256,4.085,1794.2,1794.1,1.11448]
[1745870593465,5.19942,1794.2,1794.1,1.11448]
[1745870594356,1.11448,1794.1,1794.0,1.91798]
[1745870594863,4.085,1794.2,1794.1,1.11448]
[1745870595267,5.19942,1794.2,1794.1,1.11448]
[1745870595456,4.085,1794.2,1794.1,1.11448]
[1745870595761,5.7805,1794.2,1794.1,1.11448]
[1745870595964,4.085,1794.2,1794.1,1.11448]
[1745870596355,4.085,1794.2,1794.1,4.32228]
[1745870596554,4.081,1794.4,1794.3,1.11431]
[1745870597165,5.1953,1794.4,1794.3,1.11431]
[1745870597462,6.8908,1794.4,1794.3,1.11431]
[1745870597670,5.7765,1794.4,1794.3,1.11431]
[1745870598368,6.8908,1794.4,1794.3,1.11431]
[1745870599467,5.7765,1794.4,1794.3,1.11431]
[1745870599765,4.081,1794.4,1794.3,1.11431]
[1745870601061,4.081,1794.4,1794.3,4.32211]
[1745870601366,4.081,1794.4,1794.3,8.12411]
[1745870602964,5.1953,1794.4,1794.3,4.91631]
[1745870603161,5.1953,1794.4,1794.3,1.11431]
[1745870603663,1.6292,1794.5,1794.3,1.11431]
[1745870603664,3.2078,1794.6,1794.5,1.11423]
[1745870603969,1.11413,1794.7,1794.6,1.11413]
[1745870604374,3.68063,1794.7,1794.6,1.11413]
[1745870604869,2.5665,1794.7,1794.6,1.11413]
[1745870605561,3.68061,1794.7,1794.6,1.11413]
[1745870605972,7.5665,1794.7,1794.3,3.2078]
[1745870606170,1.1143,1794.4,1794.3,2.72993]
[1745870606470,5.19528,1794.5,1794.4,1.1143]
[1745870606672,6.89238,1794.5,1794.4,1.1143]
[1745870606972,1.11438,1794.3,1794.2,1.11438]
[1745870607172,2.72963,1794.4,1794.3,1.11436]
[1745870607473,1.11437,1794.3,1794.2,1.11437]
[1745870607770,3.55547,1794.3,1794.2,1.11437]
[1745870608069,1.11444,1794.2,1794.1,1.11443]
[1745870608369,6.5284,1794.2,1794.1,1.11443]
[1745870608570,4.081,1794.2,1794.1,1.11443]
[1745870609074,5.6963,1794.2,1794.1,1.11443]
[1745870609268,5.6963,1794.2,1793.9,3.2078]
[1745870609572,2.4474,1794.1,1794.0,1.11454]
[1745870609963,2.4474,1794.1,1794.0,2.84394]
[1745870610866,4.081,1794.2,1794.1,1.11448]
[1745870611064,4.081,1794.2,1794.1,2.84388]
[1745870611268,5.6893,1794.2,1794.1,1.7294]
[1745870611578,6.80372,1794.2,1794.1,1.7294]
[1745870611873,5.6893,1794.2,1794.1,2.84388]
[1745870612176,6.80372,1794.2,1794.1,1.7294]
[1745870613569,6.80372,1794.2,1794.1,2.84388]
[1745870614074,4.081,1794.2,1794.1,2.84388]
[1745870614273,3.2078,1794.7,1794.1,12.72332]
[1745870614465,4.081,1794.6,1794.5,1.11419]
[1745870614875,5.19517,1794.6,1794.5,1.11419]
[1745870615263,6.91247,1794.6,1794.5,1.11419]
[1745870615775,1.11423,1794.5,1794.4,2.73694]
[1745870615976,1.11423,1794.5,1794.4,1.6227]
[1745870616180,4.46943,1794.5,1794.4,1.6227]
[1745870616478,1.1143,1794.4,1794.3,1.11431]
[1745870616777,1.11436,1794.3,1794.2,3.58959]
[1745870617676,1.7096,1794.4,1794.3,1.11436]
[1745870617877,1.7096,1794.4,1794.3,2.79236]
[1745870618180,2.8239,1794.4,1794.3,2.79236]
[1745870619376,1.7096,1794.4,1793.9,4.0044]
[1745870619679,4.4312,1794.5,1794.1,4.32224]
[1745870619680,1.11442,1794.2,1794.1,4.32224]
[1745870621680,6.89931,1794.3,1794.2,1.11442]
[1745870621871,6.89931,1794.3,1794.2,2.79892]
[1745870622071,1.11442,1794.2,1794.1,4.32224]
[1745870622274,2.72892,1794.2,1794.1,4.32224]
[1745870622467,2.72892,1794.2,1794.1,1.11448]
[1745870623376,1.6456,1794.5,1794.2,1.11442]
[1745870623577,4.081,1794.5,1794.4,1.1143]
[1745870624080,4.081,1794.5,1794.4,2.7351]
[1745870624474,4.081,1794.5,1794.4,1.6208]
[1745870624680,4.081,1794.5,1794.4,2.7351]
[1745870624978,5.19523,1794.5,1794.4,2.7351]
[1745870626683,4.081,1794.5,1794.4,2.7351]
[1745870626978,5.19523,1794.5,1794.4,2.7351]
[1745870627174,4.081,1794.5,1794.4,2.7351]
[1745870627382,5.19523,1794.5,1794.4,2.7351]
[1745870628075,1.1143,1794.4,1794.3,1.94026]
[1745870628276,2.7333,1794.4,1794.3,1.94026]
[1745870629979,2.7333,1794.4,1794.3,1.11436]
[1745870630874,1.619,1794.4,1794.3,1.11436]
[1745870632084,2.7333,1794.4,1794.3,1.11436]
[1745870634884,1.619,1794.4,1794.3,1.11436]
[1745870635385,1.619,1794.4,1794.2,1.6611]
[1745870635680,1.11442,1794.2,1794.1,1.91578]
[1745870636080,1.11448,1794.1,1794.0,2.80659]
[1745870636282,8.46733,1794.2,1793.7,6.5276]
[1745870636486,2.71878,1794.0,1793.9,1.1146]
[1745870636980,1.6042,1794.0,1793.9,1.1146]
[1745870637178,1.11462,1793.9,1793.8,1.11463]
[1745870637384,5.19161,1793.9,1793.8,2.73053]
[1745870637586,6.90641,1793.9,1793.7,1.93048]
[1745870637784,1.7557,1793.8,1793.7,1.93048]
[1745870637984,1.7557,1793.8,1793.7,3.54638]
[1745870640787,9.54244,1793.8,1793.3,3.2078]
[1745870641081,1.11498,1793.3,1793.2,1.593]
[1745870641285,1.11498,1793.3,1793.0,0.8665]
[1745870641286,7.2848,1793.3,1793.0,0.8665]
[1745870641486,1.11508,1793.2,1793.0,2.4595]
[1745870641689,7.2848,1793.3,1793.1,2.7081]
[1745870641984,5.7389,1793.3,1793.2,1.11504]
[1745870642182,8.9467,1793.3,1792.9,7.35578691]
[1745870642389,1.6619,1793.2,1793.1,1.1151]
[1745870642884,2.77696,1793.2,1793.0,2.70812]
[1745870643282,1.6619,1793.2,1793.1,1.1151]
[1745870643481,7.2848,1793.3,1793.2,1.11504]
[1745870643981,7.2848,1793.3,1793.2,1.99374]
[1745870644784,8.979,1793.3,1793.2,1.99374]
[1745870645378,10.09398,1793.3,1793.2,1.99374]
[1745870645878,7.2848,1793.3,1793.2,1.99374]
[1745870647082,8.39978,1793.3,1793.2,2.78714]
[1745870647682,7.2848,1793.3,1793.2,2.78714]
[1745870648186,7.2848,1793.3,1793.2,3.802]
[1745870648380,10.12768,1793.3,1793.2,3.802]
[1745870649090,1.1151,1793.1,1793.0,1.11514]
[1745870649886,2.84298,1793.2,1793.1,1.1151]
[1745870650084,1.7279,1793.2,1793.1,1.1151]
[1745870650590,2.84294,1793.2,1793.1,1.1151]
[1745870650889,1.7279,1793.2,1793.1,1.1151]
[1745870651985,2.84294,1793.2,1793.1,1.1151]
[1745870653283,1.1151,1793.1,1793.0,2.75331]
[1745870653489,1.7279,1793.2,1792.3,5.848]
[1745870653678,7.2848,1793.3,1792.4,2.78885]
[1745870653679,3.2078,1792.8,1792.4,2.78885]
[1745870653986,1.11537,1792.7,1792.6,1.11537]
[1745870654186,1.11541,1792.6,1792.5,7.40564]
[1745870656184,7.2868,1792.8,1792.5,6.2902]
[1745870656390,1.11537,1792.7,1792.6,2.75546]
[1745870656690,2.77047,1792.7,1792.6,2.75546]
[1745870657078,1.6551,1792.7,1792.6,2.75546]
[1745870657283,0.8138,1792.9,1792.8,1.11529]
[1745870657486,1.11518,1793.0,1792.7,5.30355]
[1745870657704,4.075,1793.1,1793.0,1.11517]
[1745870657987,5.1901,1793.1,1793.0,1.11517]
[1745870658385,6.8452,1793.1,1793.0,1.11517]
[1745870658787,1.11517,1793.0,1792.9,2.75528]
[1745870659789,6.84525,1793.1,1793.0,1.11517]
[1745870659990,6.84525,1793.1,1793.0,1.6906]
[1745870661994,5.7301,1793.1,1792.8,1.11526]
[1745870662196,1.11526,1792.9,1792.8,2.80736]
[1745870662397,2.73081,1793.0,1792.9,1.11523]
[1745870662897,1.6156,1793.0,1792.9,1.11523]
[1745870664195,5.93857,1793.0,1792.9,3.802]
[1745870664395,10.93857,1793.0,1792.9,3.802]
[1745870665289,1.11529,1792.8,1792.7,1.99045]
[1745870665493,4.076,1792.8,1792.7,1.99045]
[1745870665692,5.19129,1792.8,1792.7,1.99045]
[1745870665998,4.076,1792.8,1792.7,1.99045]
[1745870666195,4.076,1792.8,1792.7,5.79245]
[1745870667288,5.19129,1792.8,1792.7,4.6771]
[1745870667497,6.78149,1792.8,1792.7,3.802]
[1745870667896,9.98929,1792.8,1792.7,3.802]
[1745870668100,1.11535,1792.7,1792.6,3.59828]
[1745870668297,2.85615,1792.7,1792.6,3.59828]
[1745870668599,1.7408,1792.7,1792.6,3.59828]
[1745870668798,9.26054,1792.8,1792.7,1.11535]
[1745870668998,9.26054,1792.8,1792.7,2.69955]
[1745870669199,9.26054,1792.8,1792.7,6.50155]
[1745870673408,7.2838,1792.8,1792.7,6.50155]
[1745870673607,3.2078,1792.8,1792.7,6.50155]
[1745870673797,7.2838,1792.8,1792.7,6.50155]
[1745870674507,8.39909,1792.8,1792.7,6.50155]
[1745870676803,7.2838,1792.8,1792.7,6.50155]
[1745870677107,8.39909,1792.8,1792.7,6.50155]
[1745870678403,7.2838,1792.8,1792.7,6.50155]
[1745870678606,4.076,1792.8,1792.7,6.50155]
[1745870685413,4.076,1792.8,1792.7,9.70935]
[1745870685910,4.8877,1793.1,1793.0,1.11517]
[1745870686111,6.481,1793.1,1793.0,1.11517]
[1745870686615,7.5961,1793.1,1793.0,1.11517]
[1745870686907,6.481,1793.1,1793.0,1.11517]
[1745870687816,7.5961,1793.1,1793.0,1.11517]
[1745870688117,1.11535,1792.8,1792.7,1.11531]
[1745870688318,4.32309,1792.9,1792.8,1.11529]
[1745870688521,5.91639,1792.9,1792.8,1.11529]
[1745870689015,4.8011,1792.9,1792.8,1.11529]
[1745870689215,4.8011,1792.9,1792.8,4.91729]
[1745870693014,5.91633,1792.9,1792.8,4.91729]
[1745870693213,4.8011,1792.9,1792.8,4.91729]
[1745870693422,5.91633,1792.9,1792.8,4.91729]
[1745870693717,5.91633,1792.9,1792.8,3.802]
[1745870694220,1.11541,1792.6,1792.5,2.72786]
[1745870695020,2.75801,1792.6,1792.5,2.72786]
[1745870695325,2.75801,1792.6,1792.5,6.52986]
[1745870696826,1.6426,1792.6,1792.5,6.52986]
[1745870697124,2.75801,1792.6,1792.5,6.52986]
[1745870698025,2.75801,1792.6,1792.5,3.802]
[1745870698325,1.11561,1792.4,1792.3,1.11558]
[1745870698525,5.18761,1792.4,1792.3,1.11558]
[1745870698916,6.80431,1792.4,1792.3,1.11558]
[1745870699118,6.80431,1792.4,1792.3,4.91758]
[1745870700230,5.6887,1792.4,1792.3,4.91758]
[1745870700925,4.072,1792.4,1792.3,5.78298]
[1745870701126,5.18754,1792.4,1792.3,3.802]
[1745870701319,10.18754,1792.4,1792.3,3.802]
[1745870701523,10.18754,1792.4,1792.3,0.3202]
[1745870701826,1.11591,1791.8,1791.7,5.848]
[1745870702026,1.11591,1791.8,1791.7,1.6433]
[1745870702227,1.11591,1791.8,1791.7,1.11597]
[1745870702427,1.6185,1791.8,1791.7,1.11597]
[1745870703023,6.8833,1791.9,1791.8,1.11591]
[1745870703231,8.5018,1791.9,1791.8,1.11591]
[1745870703632,3.2078,1792.0,1791.9,1.11585]
[1745870703833,3.2078,1792.0,1791.9,1.91805]
[1745870704133,3.2078,1792.0,1791.9,5.72005]
[1745870705131,4.073,1792.1,1792.0,1.11579]
[1745870705334,4.073,1792.1,1792.0,2.70019]
[1745870706133,4.073,1792.1,1792.0,6.50219]
[1745870706525,1.11552,1792.5,1792.0,6.50219]
[1745870706526,62.608,1792.7,1792.2,2.78916]
[1745870706727,5.7869,1792.6,1792.5,1.11548]
[1745870707235,5.7869,1792.6,1792.5,4.91748]
[1745870707236,18.73178217,1792.6,1792.5,4.91748]
[1745870707431,17.01788217,1792.6,1792.5,4.91748]
[1745870709831,3.2078,1793.1,1792.7,1.11535]
[1745870710133,4.073,1793.1,1792.8,6.07766]
[1745870710332,4.073,1793.1,1793.0,1.11517]
[1745870710536,5.7613,1793.1,1793.0,1.11517]
[1745870711133,5.7613,1793.1,1793.0,4.91717]
[1745870712531,14.24736787,1793.3,1793.2,1.11504]
[1745870712731,11.03956787,1793.3,1793.2,4.32284]
[1745870712932,11.03956787,1793.3,1793.2,9.32284]
[1745870713132,11.03956787,1793.3,1793.2,13.99294]
[1745870713333,9.86528787,1793.3,1793.2,13.99294]
[1745870713534,1.53794,1793.5,1793.4,1.11492]
[1745870714236,1.53794,1793.5,1793.4,6.58562]
[1745870719351,1.11504,1793.2,1793.1,5.848]
[1745870719541,1.11504,1793.2,1793.1,8.70915]
[1745870719746,1.11516,1793.1,1792.7,2.78837]
[1745870719945,6.79816,1793.1,1793.0,1.11515]
[1745870720141,6.79816,1793.1,1792.7,2.78837]
[1745870720142,8.47077,1793.1,1792.7,3.802]
[1745870720360,4.32309,1792.8,1792.7,3.802]
[1745870720551,8.83632225,1792.8,1792.7,3.802]
[1745870720853,13.83632225,1792.8,1792.7,3.802]
[1745870721154,12.72103225,1792.8,1792.4,1.11549]
[1745870721357,4.32324,1792.6,1792.5,1.11548]
[1745870721550,3.2078,1792.6,1792.2,9.10188691]
[1745870721757,6.7985,1792.5,1792.3,1.11557]
[1745870722354,6.79851,1792.5,1792.3,1.11558]
[1745870722656,1.11554,1792.4,1792.2,14.01951691]
[1745870722951,1.6454,1792.3,1792.2,6.66373]
[1745870725458,3.2078,1792.4,1792.3,1.1156]
[1745870726258,3.2078,1792.4,1792.3,4.9176]
[1745870730459,4.32334,1792.4,1792.3,4.9176]
[1745870730853,3.2078,1792.4,1792.3,4.9176]
[1745870731050,4.8133,1792.4,1792.3,4.9176]
[1745870732056,4.8133,1792.4,1792.0,3.2078]
[1745870732261,1.11587,1791.9,1791.8,1.11586]
[1745870732454,1.11593,1791.8,1791.7,1.11593]
[1745870732654,1.6422,1791.8,1791.7,1.11593]
[1745870733050,1.6422,1791.8,1791.5,1.6141]
[1745870733354,1.11613,1791.5,1791.4,1.11614]
[1745870733558,1.55292826,1791.5,1791.4,1.11614]
[1745870733759,5.7102,1791.6,1791.1,7.61277]
[1745870733960,1.11614,1791.5,1791.4,1.11615]
[1745870734455,2.75834,1791.5,1791.4,1.11615]
[1745870735267,2.75834,1791.5,1791.4,4.91815]
[1745870735561,3.9995,1791.7,1791.6,1.11604]
[1745870735764,6.6455,1791.8,1791.7,1.11597]
[1745870736165,4.32362,1792.0,1791.9,1.11585]
[1745870736166,3.2078,1792.0,1791.9,1.11585]
[1745870736361,12.2768,1792.0,1791.7,3.802]
[1745870736564,12.2768,1792.0,1790.7,5.848]
[1745870736565,2.79015,1791.6,1790.7,5.848]
[1745870736861,3.2078,1791.8,1790.6,40.8]
[1745870736862,3.2078,1791.1,1790.6,40.8]
[1745870737066,5.8047,1791.0,1790.8,1.1165]
[1745870737264,7.2768,1791.1,1791.0,1.11641]
[1745870738162,7.2768,1791.1,1791.0,3.802]
[1745870738363,8.9285,1791.1,1791.0,4.91841]
[1745870738669,7.2768,1791.1,1791.0,4.91841]
[1745870738870,4.069,1791.1,1791.0,4.91841]
[1745870739062,4.069,1791.2,1791.1,1.11635]
[1745870739260,7.2768,1791.2,1791.1,1.11635]
[1745870739763,7.2768,1791.2,1791.1,2.75915]
[1745870739973,5.7207,1791.2,1791.1,2.75915]
[1745870740666,8.9285,1791.2,1791.1,2.75915]
[1745870740870,10.04479,1791.2,1791.1,2.75915]
[1745870741568,8.9285,1791.2,1791.1,2.75915]
[1745870746280,8.9285,1791.2,1791.0,3.802]
[1745870746281,8.9285,1791.2,1791.0,4.91837]
[1745870746467,8.9285,1791.2,1791.1,1.11635]
[1745870746772,10.04484,1791.2,1791.1,1.11635]
[1745870748877,1.11636,1791.1,1791.0,1.11637]
[1745870749176,2.84156,1791.1,1791.0,4.91837]
[1745870750578,1.7252,1791.1,1791.0,4.91837]
[1745870750775,2.84155,1791.1,1791.0,4.91837]
[1745870750971,1.7252,1791.1,1791.0,4.91837]
[1745870751872,2.84155,1791.1,1791.0,4.91837]
[1745870752270,7.2768,1791.2,1791.1,1.11635]
[1745870752271,4.32411,1791.2,1791.1,1.11635]
[1745870752466,4.067,1791.3,1791.1,1.6555]
[1745870752666,1.11635,1791.1,1791.0,3.802]
[1745870752874,3.3046257,1791.1,1790.2,3.2078]
[1745870753075,1.11666,1790.6,1790.5,1.6787]
[1745870753275,1.11683,1790.4,1790.2,7.0098]
[1745870753476,1.6301,1790.5,1790.4,1.11678]
[1745870753771,4.9053,1790.6,1790.5,1.11672]
[1745870753970,4.068,1790.6,1790.3,1.6787]
[1745870754175,4.068,1790.6,1790.5,1.11672]
[1745870755179,5.18466,1790.6,1790.5,3.802]
[1745870755579,4.068,1790.6,1790.5,4.91872]
[1745870756077,5.18466,1790.6,1790.5,4.91872]
[1745870756281,4.068,1790.6,1790.5,4.91872]
[1745870756976,4.068,1790.6,1790.5,6.58162]
[1745870757178,4.068,1790.7,1790.6,1.11666]
[1745870759782,6.79662,1790.9,1790.8,1.11654]
[1745870759980,9.7481,1790.9,1790.8,1.11654]
[1745870760173,9.7481,1790.9,1790.8,4.91854]
[1745870760573,7.2758,1790.9,1790.8,4.91854]
[1745870762079,3.2078,1790.9,1790.8,4.91854]
[1745870762279,7.2758,1790.9,1790.8,4.91854]
[1745870762983,1.7007,1791.1,1791.0,1.11641]
[1745870763177,5.7687,1791.1,1791.0,1.11641]
[1745870763373,8.9765,1791.1,1790.8,3.802]
[1745870763578,10.09289,1791.1,1791.0,1.11641]
[1745870764084,10.09289,1791.1,1791.0,4.91841]
[1745870764677,10.09289,1791.1,1791.0,3.802]
[1745870764878,10.09289,1791.1,1791.0,4.91841]
[1745870765389,6.88509,1791.1,1791.0,4.91841]
[1745870765681,4.068,1791.1,1791.0,4.91841]
[1745870765984,7.2758,1791.1,1791.0,4.91841]
[1745870766281,3.2078,1791.1,1791.0,4.91841]
[1745870766486,6.4766,1791.3,1791.0,3.802]
[1745870766781,12.10359643,1791.3,1791.2,1.11629]